bitfinex/quotes_ETHUSD_20250123
["timestamp","ask_amount","ask_price","bid_price","bid_amount"]
[1737673126184,4.03601,3319.9,3319.3,3.01267]
[1737673126509,3.01169,3320.4,3319.7,3.01227]
[1737673126722,3.0115,3320.6,3319.8,3.0]
[1737673127408,0.9639,3320.7,3320.0,3.0]
[1737673127609,3.0116,3320.5,3320.0,3.0]
[1737673129282,3.01152,3320.6,3320.0,3.0]
[1737673130409,3.01124,3320.9,3320.2,3.0]
[1737673130611,3.01124,3320.9,3320.2,6.01179]
[1737673130786,3.01124,3320.9,3320.4,3.0]
[1737673130984,0.60787838,3321.2,3320.1,1.0]
[1737673131187,2.7606808,3321.9,3320.1,1.0]
[1737673131188,3.01089,3321.3,3320.7,3.0]
[1737673131492,3.01096,3321.2,3320.7,3.0]
[1737673131714,3.01059,3321.7,3320.8,0.9966]
[1737673131879,3.01034,3321.9,3321.1,3.0]
[1737673132085,3.01003,3322.3,3321.7,3.0]
[1737673132280,4.67358045,3322.5,3321.7,3.01042]
[1737673132281,4.06251,3322.5,3321.7,3.01042]
[1737673132480,3.00972,3322.6,3322.0,3.0]
[1737673132714,4.22175379,3322.9,3322.1,0.9966]
[1737673132715,1.21232379,3322.9,3322.1,0.9966]
[1737673132917,0.59360441,3323.5,3322.5,3.0]
[1737673133115,3.00912,3323.3,3322.5,3.00976]
[1737673133316,3.00912,3323.3,3322.5,3.0097]
[1737673133587,3.00885,3323.6,3322.7,3.0]
[1737673133984,3.00903,3323.4,3322.7,3.0]
[1737673134231,3.00907,3323.3,3322.7,3.0]
[1737673134612,3.00878,3323.6,3322.4,0.9874]
[1737673134817,4.55467,3323.5,3322.4,0.9874]
[1737673134991,3.00946,3322.9,3322.4,0.9874]
[1737673135192,3.00962,3322.7,3322.0,1.3485]
[1737673135829,3.0097,3322.6,3322.0,1.3485]
[1737673139330,3.00951,3322.8,3322.0,4.35865]
[1737673139833,3.00951,3322.8,3322.1,3.01011]
[1737673140023,3.00951,3322.8,3322.2,3.435861]
[1737673143865,3.00933,3323.0,3322.2,3.435861]
[1737673143866,3.0096,3322.7,3322.2,3.435861]
[1737673144726,3.00933,3323.0,3322.2,3.435861]
[1737673145069,3.00951,3322.8,3322.2,3.435861]
[1737673147978,3.00953,3322.8,3322.2,3.435861]
[1737673148271,3.00953,3322.8,3322.3,0.6445971]
[1737673149350,3.00933,3323.0,3322.4,3.0]
[1737673149556,3.00944,3322.9,3322.5,0.9906]
[1737673149938,3.00945,3322.9,3322.5,0.9906]
[1737673152191,1.1633651,3323.4,3322.5,0.9906]
[1737673152192,3.00915,3323.2,3322.5,0.9906]
[1737673152361,3.00938,3323.0,3322.5,1.15411971]
[1737673153079,3.00942,3322.9,3322.5,1.15411971]
[1737673154582,3.00924,3323.1,3322.5,4.15411971]
[1737673155269,3.00924,3323.1,3322.5,1.15411971]
[1737673156696,3.00934,3323.0,3322.5,1.15411971]
[1737673157086,3.00934,3323.0,3322.6,0.41541197]
[1737673158306,3.00934,3323.0,3322.5,0.16351971]
[1737673159988,3.00906,3323.3,3322.6,3.0]
[1737673160183,3.00911,3323.3,3322.7,0.9887]
[1737673160907,3.00888,3323.5,3322.7,0.9887]
[1737673161203,3.00914,3323.2,3322.7,0.9887]
[1737673161376,3.00914,3323.2,3322.8,0.44318139]
[1737673161771,3.00914,3323.2,3322.8,0.66060906]
[1737673162975,3.00914,3323.2,3322.9,0.65086154]
[1737673163276,3.00914,3323.2,3322.8,0.44318139]
[1737673164184,3.00914,3323.2,3322.9,0.43480851]
[1737673165873,3.00914,3323.2,3323.0,0.43480851]
[1737673167319,3.00914,3323.2,3322.9,0.43480851]
[1737673168373,3.00899,3323.4,3322.9,3.9214775]
[1737673169314,3.00844,3324.0,3323.3,3.0]
[1737673169492,3.00826,3324.2,3323.5,6.98545]
[1737673170011,3.00834,3324.1,3323.5,6.98545]
[1737673170227,0.9646,3324.4,3323.5,0.9766]
[1737673170228,3.00861,3323.8,3323.5,0.9766]
[1737673170527,3.00869,3323.7,3323.6,0.43480851]
[1737673171908,4.05369,3323.7,3323.6,0.43480851]
[1737673172091,3.00869,3323.7,3323.2,0.76380851]
[1737673172292,2.95869,3323.7,3323.3,0.43719024]
[1737673173076,2.95869,3323.7,3323.4,1.0284]
[1737673175193,1.045,3324.1,3323.2,0.76380851]
[1737673175393,6.01702,3323.9,3323.2,0.43480851]
[1737673175682,3.00905,3323.3,3323.2,0.43480851]
[1737673176816,3.00932,3323.0,3322.9,0.43480851]
[1737673178507,3.00958,3322.8,3322.3,0.43480851]
[1737673178714,3.00967,3322.7,3322.3,0.43480851]
[1737673179024,3.00967,3322.7,3322.3,0.38480851]
[1737673179395,1.0517,3323.4,3322.3,0.38480851]
[1737673179731,3.00987,3322.4,3322.3,0.38480851]
[1737673180038,3.01032,3321.9,3321.4,1.63750871]
[1737673180197,3.01032,3321.9,3320.8,0.81718626]
[1737673180198,1.0509,3322.1,3320.8,0.81718626]
[1737673180588,3.01069,3321.5,3320.9,4.03402]
[1737673181034,3.01087,3321.3,3320.9,1.0228]
[1737673181195,3.01087,3321.3,3320.9,1.50793663]
[1737673182534,3.01087,3321.3,3320.9,0.48513663]
[1737673186841,3.01078,3321.4,3320.9,0.48513663]
[1737673187048,3.01078,3321.4,3320.8,3.0]
[1737673187246,3.01107,3321.1,3320.5,3.01157]
[1737673187418,3.01125,3320.9,3320.4,1.0253]
[1737673187616,3.01086,3321.3,3320.1,1.0027]
[1737673187931,3.01147,3320.7,3320.1,1.0027]
[1737673188199,3.01154,3320.6,3320.1,1.0027]
[1737673189915,1.0369,3320.8,3320.1,1.0027]
[1737673190087,1.0369,3320.8,3319.7,3.0123]
[1737673190088,3.01169,3320.4,3319.7,4.0156]
[1737673190409,3.0118,3320.3,3319.7,1.0033]
[1737673190904,1.0369,3320.8,3319.7,1.0033]
[1737673190905,3.01163,3320.5,3319.7,4.41712]
[1737673191070,1.0369,3320.8,3319.7,1.0033]
[1737673191264,3.01198,3320.1,3319.5,3.0]
[1737673191473,3.01204,3320.0,3319.4,2.166]
[1737673191661,3.01216,3319.9,3319.4,2.166]
[1737673192777,3.01164,3320.5,3319.4,2.166]
[1737673192778,3.01165,3320.5,3319.5,4.0118]
[1737673192977,3.01151,3320.6,3319.9,3.0]
[1737673193215,0.9974,3320.9,3320.2,3.0118]
[1737673193366,3.01118,3321.0,3320.3,3.0]
[1737673193770,3.01124,3320.9,3320.3,3.0]
[1737673194074,3.367086,3321.2,3320.6,3.0]
[1737673194286,1.0423,3321.4,3320.0,0.9986]
[1737673194287,3.01114,3321.0,3320.0,4.01063]
[1737673194703,3.01135,3320.8,3320.1,3.0]
[1737673195018,3.01135,3320.8,3320.1,3.01195]
[1737673196116,3.01096,3321.2,3320.5,3.0]
[1737673196318,3.01087,3321.3,3320.7,3.0]
[1737673196621,3.01075,3321.5,3320.7,1.0457]
[1737673196820,3.01075,3321.5,3320.7,4.0457]
[1737673197192,3.01042,3321.8,3320.9,3.0]
[1737673197603,3.01042,3321.8,3320.9,3.0112]
[1737673197800,3.01042,3321.8,3321.0,3.0]
[1737673197999,4.04824,3322.0,3321.0,3.0]
[1737673198201,3.01051,3321.7,3321.0,3.0]
[1737673198407,3.01024,3322.0,3321.3,1.0457]
[1737673198578,3.41517,3323.3,3321.9,3.0]
[1737673198580,3.00951,3322.8,3321.9,3.0]
[1737673198776,3.00951,3322.8,3322.0,1.0457]
[1737673199295,3.00939,3323.0,3322.0,4.0457]
[1737673199514,3.00916,3323.2,3322.1,0.7056]
[1737673200407,0.40606,3323.3,3322.1,0.7056]
[1737673200643,3.00949,3322.9,3322.1,0.7056]
[1737673201189,3.00923,3323.1,3322.2,3.01005]
[1737673201618,3.00933,3323.0,3322.2,3.01005]
[1737673201816,3.00887,3323.5,3322.4,3.0]
[1737673202090,3.00912,3323.3,3322.4,3.0]
[1737673202314,3.00887,3323.5,3322.6,4.0479]
[1737673202525,3.00885,3323.6,3322.6,4.0479]
[1737673202830,3.0087,3323.7,3322.8,3.00948]
[1737673203034,3.0087,3323.7,3322.9,3.0]
[1737673203198,3.00855,3323.9,3322.8,1.002]
[1737673203533,3.00842,3324.0,3323.4,1.002]
[1737673204403,3.00833,3324.1,3323.4,1.703107]
[1737673205001,3.00795,3324.6,3323.4,0.701107]
[1737673205203,3.32150651,3325.3,3323.4,0.701107]
[1737673205204,3.00743,3325.1,3324.1,3.0083]
[1737673205413,3.00743,3325.1,3324.2,3.00824]
[1737673205928,3.00702,3325.6,3324.6,3.0]
[1737673206230,3.00724,3325.3,3324.4,1.0158]
[1737673206387,3.00726,3325.3,3324.6,3.0]
[1737673206587,3.00735,3325.2,3324.6,0.702375]
[1737673207407,0.9891,3325.3,3324.2,3.0]
[1737673207613,0.9891,3325.3,3323.7,3.00864]
[1737673207813,3.00798,3324.5,3323.6,3.0]
[1737673208008,3.00822,3324.3,3323.5,1.0158]
[1737673208350,3.00833,3324.1,3323.5,1.0158]
[1737673208516,3.00833,3324.1,3323.5,1.41738]
[1737673208703,3.00833,3324.1,3323.5,1.0158]
[1737673208903,3.00822,3324.3,3323.5,4.0158]
[1737673209305,3.00767,3324.9,3323.5,1.0158]
[1737673209511,3.00826,3324.2,3323.5,1.0158]
[1737673209815,3.00796,3324.6,3323.7,3.0]
[1737673210144,3.00796,3324.6,3323.7,3.711136]
[1737673210303,3.00742,3325.2,3323.8,0.9881]
[1737673210503,3.00754,3325.0,3324.2,6.00823]
[1737673210735,3.1747787,3325.4,3324.4,3.0]
[1737673210918,3.00735,3325.2,3324.4,3.0]
[1737673211101,3.00735,3325.2,3324.4,4.002097]
[1737673211303,3.1747787,3325.4,3324.4,4.002097]
[1737673211304,0.1676187,3325.4,3324.4,1.002097]
[1737673211545,3.00724,3325.3,3324.4,3.00798]
[1737673212059,3.00736,3325.2,3324.4,3.00798]
[1737673212206,3.00724,3325.3,3324.4,3.00798]
[1737673212638,3.00734,3325.2,3324.4,3.00798]
[1737673213307,3.00734,3325.2,3324.3,1.0046]
[1737673213308,3.00743,3325.1,3324.5,3.0]
[1737673213504,0.9822,3324.9,3323.8,0.9928]
[1737673213705,0.9822,3324.9,3323.5,0.9928]
[1737673213905,3.00783,3324.7,3323.5,0.9928]
[1737673214174,3.00747,3325.1,3323.5,4.00162]
[1737673214306,3.00747,3325.1,3323.7,0.9928]
[1737673214538,3.00747,3325.1,3324.2,3.0]
[1737673214785,3.00747,3325.1,3324.0,3.0]
[1737673214948,3.00747,3325.1,3324.4,3.0]
[1737673215685,3.00747,3325.1,3324.3,35.0]
[1737673215848,3.00768,3324.9,3324.1,1.008]
[1737673216172,3.00768,3324.9,3324.1,4.008]
[1737673216376,3.00734,3325.2,3324.4,3.00805]
[1737673216581,3.00751,3325.0,3324.3,3.0]
[1737673217254,3.00734,3325.2,3324.3,6.00814]
[1737673217880,3.1747787,3325.4,3324.3,3.0]
[1737673218078,3.1747787,3325.4,3324.4,0.9717982]
[1737673218079,3.0074,3325.2,3324.4,0.9717982]
[1737673218238,3.0074,3325.2,3324.5,3.0]
[1737673219154,3.0074,3325.2,3324.6,0.981]
[1737673221193,0.1676187,3325.4,3324.8,3.0]
[1737673222690,0.1676187,3325.4,3325.0,3.0]
[1737673223699,3.00888,3323.5,3323.0,1.0301]
[1737673223909,3.0089,3323.5,3323.0,1.0301]
[1737673224052,3.00914,3323.3,3323.0,36.0301]
[1737673224396,3.00914,3323.2,3322.5,1.0095]
[1737673224599,3.00976,3322.6,3321.9,1.0095]
[1737673224781,1.0218,3323.0,3321.9,1.0095]
[1737673224950,4.03121,3323.0,3322.1,3.01012]
[1737673225298,3.00888,3323.5,3322.7,3.0]
[1737673225498,3.00888,3323.5,3322.8,0.600965]
[1737673225664,3.00869,3323.8,3322.8,3.610445]
[1737673225879,3.00872,3323.7,3322.9,38.0]
[1737673226259,3.00852,3323.9,3323.1,3.0]
[1737673226501,3.0087,3323.7,3322.8,3.610465]
[1737673226675,1.0218,3324.1,3322.9,0.4619965]
[1737673226987,3.0086,3323.8,3323.3,3.0]
[1737673227677,3.00866,3323.8,3323.3,3.0]
[1737673227995,3.00842,3324.0,3323.1,3.0]
[1737673228192,3.00842,3324.0,3323.1,6.0092]
[1737673228598,3.00826,3324.2,3323.5,3.0]
[1737673228909,3.00756,3325.0,3324.0,3.0]
[1737673229115,3.00756,3325.0,3324.2,3.0]
[1737673229493,3.00756,3325.0,3324.9,3.0]
[1737673229703,3.00756,3325.0,3324.2,3.00824]
[1737673230016,3.00756,3325.0,3324.3,0.402994]
[1737673230217,3.00756,3325.0,3324.9,38.0]
[1737673232488,3.00742,3325.1,3325.0,3.0]
[1737673232686,3.00727,3325.3,3325.0,3.0]
[1737673232922,0.1676187,3325.4,3325.0,3.9858]
[1737673233077,0.1676187,3325.4,3325.2,3.0]
[1737673233499,3.1747687,3325.4,3325.2,3.0]
[1737673234014,0.1676187,3325.4,3325.2,3.0]
[1737673236119,0.1676187,3325.4,3325.0,0.9858]
[1737673236415,0.1676187,3325.4,3325.3,3.00724]
[1737673236614,3.00616,3326.5,3325.8,3.0]
[1737673236978,0.59524954,3327.2,3325.4,1.0468]
[1737673237189,3.54276131,3328.4,3325.4,1.0468]
[1737673237190,0.31404664,3327.9,3326.0,1.0297]
[1737673237517,0.31404664,3327.9,3326.3,3.0]
[1737673237518,3.00553,3327.2,3326.3,3.0]
[1737673237823,3.00536,3327.4,3326.3,3.0063]
[1737673238021,3.00574,3327.0,3326.4,0.60063]
[1737673238181,3.00542,3327.4,3326.4,0.60063]
[1737673238385,3.00561,3327.2,3326.7,0.9752]
[1737673238710,3.00545,3327.3,3326.7,0.9752]
[1737673239112,3.00518,3327.6,3326.7,0.9752]
[1737673239499,3.00496,3327.9,3327.0,3.00566]
[1737673239691,3.005,3327.8,3327.1,0.300566]
[1737673239887,3.005,3327.8,3327.1,3.300566]
[1737673240087,3.00488,3328.0,3327.1,3.306166]
[1737673240313,3.00493,3327.9,3327.2,1.0117]
[1737673240521,3.00493,3327.9,3327.2,4.01721]
[1737673240838,3.00493,3327.9,3327.3,0.4317776]
[1737673241045,3.00493,3327.9,3327.2,1.0117]
[1737673241234,3.00505,3327.8,3327.2,1.0117]
[1737673241429,3.00493,3327.9,3327.2,1.0117]
[1737673241819,4.57356565,3328.5,3327.2,1.0117]
[1737673242004,3.00518,3327.6,3327.2,1.0117]
[1737673242432,3.00503,3327.8,3327.2,1.0117]
[1737673242846,3.00488,3328.0,3327.2,4.0117]
[1737673243005,3.0049,3327.9,3327.3,0.701729]
[1737673243721,3.0049,3327.9,3327.2,1.0117]
[1737673244113,3.00472,3328.1,3327.2,1.0117]
[1737673244320,3.00477,3328.1,3327.2,4.01722]
[1737673245047,3.00482,3328.0,3327.2,4.01722]
[1737673246222,3.00433,3328.6,3327.2,4.01722]
[1737673246223,0.1676187,3328.7,3328.1,1.0449]
[1737673246418,0.1176187,3328.7,3328.1,1.0449]
[1737673246620,0.1176187,3328.7,3328.2,0.404969]
[1737673246820,0.1176187,3328.7,3328.2,35.404969]
[1737673247022,0.1176187,3328.7,3328.3,3.0]
[1737673247213,0.1176187,3328.7,3328.2,3.404969]
[1737673247622,0.1176187,3328.7,3328.4,6.00444]
[1737673247947,0.1176187,3328.7,3328.6,3.97226]
[1737673252080,0.1176187,3328.7,3328.6,6.97226]
[1737673252285,1.0577,3329.5,3328.0,1.0132]
[1737673252448,0.9969,3328.7,3327.7,1.0046]
[1737673252635,3.00462,3328.3,3327.7,1.0046]
[1737673252832,3.00464,3328.2,3327.7,1.405585]
[1737673253672,3.00455,3328.3,3327.7,1.405585]
[1737673253874,3.00471,3328.1,3327.7,1.0046]
[1737673254535,3.00507,3327.7,3327.0,3.00569]
[1737673254731,3.00507,3327.7,3326.9,0.9925]
[1737673254953,3.00527,3327.5,3326.9,0.9925]
[1737673255148,3.00527,3327.5,3327.0,0.399832]
[1737673255549,0.9827,3327.8,3327.0,0.399832]
[1737673255746,3.00527,3327.5,3327.0,0.399832]
[1737673257197,3.00557,3327.2,3326.9,0.9925]
[1737673257393,3.00572,3327.0,3326.5,1.0037]
[1737673257607,3.00553,3327.2,3326.5,4.00984]
[1737673257798,3.00553,3327.2,3326.6,0.400984]
[1737673258425,3.00553,3327.2,3326.6,3.407044]
[1737673258709,3.00553,3327.2,3326.7,3.0]
[1737673258891,3.00526,3327.5,3326.7,6.00592]
[1737673259092,3.00536,3327.4,3326.7,7.0475864]
[1737673259529,3.00499,3327.8,3326.9,3.00573]
[1737673259734,3.00499,3327.8,3327.3,3.0]
[1737673259902,3.00481,3328.0,3327.2,3.0055]
[1737673260090,3.00481,3328.0,3327.2,3.0]
[1737673260292,3.97506,3328.5,3327.1,3.98034]
[1737673260293,3.00436,3328.5,3327.8,3.0]
[1737673260494,0.9719,3329.4,3328.4,3.00436]
[1737673260801,0.9719,3329.4,3328.7,3.0]
[1737673261135,3.00347,3329.5,3328.7,3.00416]
[1737673261437,3.00357,3329.4,3328.7,3.00416]
[1737673261809,0.9916,3329.8,3328.8,3.00407]
[1737673262135,3.00351,3329.5,3328.8,3.00408]
[1737673262336,3.00356,3329.4,3328.9,3.0]
[1737673262911,3.00345,3329.5,3328.9,3.0]
[1737673263512,0.9916,3329.8,3328.9,3.0]
[1737673263701,3.00336,3329.6,3329.1,3.0]
[1737673264043,6.00678,3329.6,3329.1,3.0]
[1737673264195,3.00336,3329.6,3329.1,3.0]
[1737673264536,3.00336,3329.6,3328.9,3.600408]
[1737673264750,3.00336,3329.6,3329.0,3.0]
[1737673265092,3.99479,3329.8,3329.0,3.0]
[1737673265324,3.00327,3329.7,3329.0,3.0039]
[1737673266240,3.99479,3329.8,3329.0,3.0039]
[1737673266736,3.00327,3329.7,3328.9,3.600408]
[1737673266906,3.00343,3329.6,3328.9,3.600408]
[1737673267143,3.99478,3329.8,3329.0,0.6604488]
[1737673267319,3.99478,3329.8,3329.3,3.0]
[1737673268264,0.31369111,3330.0,3329.3,3.0]
[1737673268435,3.0031,3329.9,3329.3,3.0]
[1737673268635,3.00322,3329.8,3329.3,3.0]
[1737673269321,0.9768,3329.8,3328.0,0.9529]
[1737673269664,1.0034,3329.1,3328.4,3.00438]
[1737673269826,4.00721,3329.1,3328.4,3.00438]
[1737673270027,3.00381,3329.1,3328.5,3.0]
[1737673270521,3.00381,3329.1,3328.4,3.00438]
[1737673270724,3.00381,3329.1,3328.2,3.0046]
[1737673270725,3.00341,3329.6,3328.9,3.00393]
[1737673271063,3.00341,3329.6,3329.1,3.0]
[1737673271637,3.54276131,3330.5,3329.1,3.0]
[1737673271638,0.1676187,3332.0,3331.7,3.00143]
[1737673271847,0.1676187,3332.0,3331.9,3.00129]
[1737673272051,0.1676187,3332.0,3331.9,6.00129]
[1737673272236,0.1676187,3332.0,3331.9,3.0]
[1737673272658,0.1676187,3332.0,3331.9,6.00129]
[1737673272862,0.1676187,3332.0,3331.9,6.901565]
[1737673273231,0.1676187,3332.0,3331.9,6.00129]
[1737673274023,0.1676187,3332.0,3331.9,3.0]
[1737673274267,0.1676187,3332.0,3331.9,6.00129]
[1737673274848,0.1676187,3332.0,3331.9,3.0]
[1737673275054,3.1688187,3332.0,3331.9,3.0]
[1737673275378,0.1676187,3332.0,3331.9,3.0]
[1737673275681,3.1688187,3332.0,3331.9,3.0]
[1737673275838,3.00149,3331.7,3331.0,4.02349]
[1737673276044,3.00166,3331.5,3331.0,1.0214]
[1737673276245,3.00147,3331.7,3331.0,1.0214]
[1737673276444,3.00138,3331.8,3331.0,1.0214]
[1737673276640,3.00149,3331.7,3331.0,1.0214]
[1737673277047,3.00149,3331.7,3331.0,4.423757]
[1737673278183,3.00149,3331.7,3331.0,4.418757]
[1737673278349,3.00149,3331.7,3331.0,1.418757]
[1737673278549,3.00149,3331.7,3331.0,4.420837]
[1737673278750,3.00141,3331.8,3331.0,4.420837]
[1737673278950,0.78461257,3332.0,3331.0,1.418757]
[1737673278951,3.00147,3331.7,3331.0,1.418757]
[1737673279185,0.78461257,3332.0,3331.0,4.0164]
[1737673279348,3.0019,3331.3,3330.7,2.162]
[1737673279551,3.00195,3331.2,3330.7,2.162]
[1737673279850,3.00157,3331.6,3330.7,2.162]
[1737673280050,1.0465,3331.7,3330.7,2.162]
[1737673280252,3.002,3331.2,3330.7,2.162]
[1737673280676,3.00209,3331.1,3330.7,2.162]
[1737673280889,3.00191,3331.3,3330.7,2.162]
[1737673281074,0.600356,3331.3,3330.7,2.162]
[1737673281264,3.00205,3331.1,3330.7,2.162]
[1737673281461,3.00185,3331.3,3330.7,2.162]
[1737673282201,3.00169,3331.5,3330.8,3.0]
[1737673282413,3.00169,3331.5,3330.8,3.00228]
[1737673283810,3.00181,3331.4,3330.7,2.162]
[1737673284178,3.00181,3331.4,3330.8,3.0]
[1737673284377,3.00147,3331.7,3330.8,3.0]
[1737673284810,3.00156,3331.6,3331.0,3.0]
[1737673285966,3.00156,3331.6,3331.1,0.9988]
[1737673286075,3.00165,3331.5,3331.1,0.9988]
[1737673286271,3.00184,3331.3,3330.8,3.0]
[1737673286517,3.00198,3331.2,3330.8,3.0]
[1737673286823,3.00192,3331.2,3329.9,0.9594]
[1737673286988,3.00325,3329.8,3329.2,0.9594]
[1737673287172,3.00345,3329.5,3329.3,4.0]
[1737673287373,3.00309,3329.9,3329.3,4.0]
[1737673287593,3.004,3328.9,3328.3,1.0404]
[1737673287792,0.9837,3329.0,3328.1,5.1657]
[1737673288177,3.00414,3328.8,3328.3,4.0]
[1737673288403,3.00408,3328.9,3328.3,4.91657]
[1737673288714,3.00427,3328.6,3328.3,4.91657]
[1737673288932,0.9837,3329.0,3327.9,1.0404]
[1737673289089,3.00399,3328.9,3327.8,3.04621382]
[1737673289277,3.97039,3327.9,3327.8,3.04621382]
[1737673289477,3.00516,3327.6,3326.2,2.161]
[1737673289729,3.0061,3326.6,3326.2,2.161]
[1737673289925,3.00619,3326.5,3326.2,2.3771]
[1737673290535,3.00651,3326.2,3325.7,0.3009]
[1737673290819,3.00651,3326.2,3325.6,3.04621382]
[1737673291030,3.0063,3326.4,3325.6,3.04621382]
[1737673291214,3.00643,3326.3,3325.6,3.04621382]
[1737673291377,3.00644,3326.2,3325.6,3.04621382]
[1737673291582,0.9655,3326.8,3325.7,3.00686]
[1737673291910,6.0115,3327.0,3326.2,3.0]
[1737673292114,3.00571,3327.0,3326.2,3.0]
[1737673292609,3.00571,3327.0,3326.1,3.00647]
[1737673292927,3.00578,3327.0,3326.2,3.0]
[1737673293130,3.0059,3326.8,3326.2,0.600647]
[1737673293695,3.00578,3327.0,3326.2,0.600647]
[1737673293900,3.00588,3326.9,3326.2,0.600647]
[1737673294102,3.00594,3326.8,3326.2,0.600647]
[1737673294337,3.00594,3326.8,3325.9,6.00668]
[1737673295035,3.00599,3326.7,3325.9,6.00668]
[1737673295250,0.55,3327.5,3325.7,6.00687]
[1737673295407,3.00617,3326.5,3325.7,3.0]
[1737673296350,3.00617,3326.5,3325.7,3.00687]
[1737673296561,0.55,3327.5,3325.8,0.36121974]
[1737673296721,3.00652,3326.1,3325.6,0.60532738]
[1737673296927,3.00652,3326.1,3325.3,3.00716]
[1737673298057,3.00652,3326.1,3325.5,3.0]
[1737673298242,3.00652,3326.1,3325.2,4.00722]
[1737673298446,3.00652,3326.1,3325.2,0.9999]
[1737673298753,3.00684,3325.8,3325.2,0.9999]
[1737673299111,3.00684,3325.8,3325.2,1.39989]
[1737673299455,3.00625,3326.4,3324.8,3.98592]
[1737673299658,3.00705,3325.6,3324.8,3.98592]
[1737673299859,3.00705,3325.6,3324.9,3.0]
[1737673300008,3.00744,3325.1,3324.4,3.00806]
[1737673300215,1.0656,3325.6,3324.3,0.9783]
[1737673300429,3.00746,3325.1,3324.3,0.9783]
[1737673300757,3.00746,3325.1,3324.3,3.98639]
[1737673300917,3.00746,3325.1,3324.4,0.398639]
[1737673301163,3.00746,3325.1,3324.5,3.0]
[1737673302596,1.0656,3325.6,3324.7,3.0]
[1737673302802,3.00733,3325.2,3324.7,3.0]
[1737673302998,3.00733,3325.2,3324.4,3.398639]
[1737673303158,3.00733,3325.2,3324.4,3.406649]
[1737673303367,3.00739,3325.2,3324.4,3.406649]
[1737673304309,3.00739,3325.2,3324.6,3.0]
[1737673304900,1.0656,3325.6,3324.5,0.4384949]
[1737673305105,3.0075,3325.1,3324.5,0.4384949]
[1737673305300,3.0075,3325.1,3324.6,3.0]
[1737673305476,3.00692,3325.7,3324.5,0.4384949]
[1737673305679,3.00692,3325.7,3325.1,3.0]
[1737673305879,3.00692,3325.7,3324.8,6.00765]
[1737673306120,3.0072,3325.4,3324.6,3.0]
[1737673306294,3.0074,3325.2,3324.6,3.0]
[1737673306485,3.00744,3325.1,3324.6,3.0]
[1737673306884,3.0072,3325.4,3324.6,3.0]
[1737673307106,3.00754,3325.0,3324.6,3.0]
[1737673307315,3.00743,3325.1,3324.5,3.0]
[1737673307613,3.00716,3325.4,3324.5,3.00796]
[1737673307820,3.00741,3325.2,3324.5,3.00796]
[1737673308727,3.00771,3324.8,3324.3,0.9783]
[1737673308895,1.045,3325.3,3323.9,1.0517]
[1737673309082,3.00779,3324.7,3323.9,1.0517]
[1737673309482,3.00817,3324.3,3323.9,1.0517]
[1737673309725,3.00817,3324.3,3323.5,3.00885]
[1737673309726,3.00835,3324.1,3323.5,3.00885]
[1737673309893,1.0606,3324.2,3323.3,0.60807782]
[1737673310092,3.00851,3323.9,3323.3,1.28595237]
[1737673310423,4.06884,3324.2,3322.3,2.0]
[1737673310424,1.0606,3324.2,3322.8,3.00948]
[1737673310724,3.00915,3323.2,3322.4,3.0098]
[1737673311081,3.00916,3323.2,3322.5,3.00974]
[1737673311498,0.9669,3323.1,3321.3,0.31418667]
[1737673311694,3.00989,3322.4,3321.6,3.01052]
[1737673311922,3.00989,3322.4,3321.7,0.701052]
[1737673312224,3.01008,3322.2,3321.4,3.01075]
[1737673312447,0.55,3323.0,3321.4,3.01075]
[1737673312611,3.01022,3322.1,3321.4,3.01075]
[1737673313592,3.0101,3322.2,3321.4,3.01075]
[1737673313798,3.01016,3322.1,3321.4,3.612919]
[1737673314197,3.00951,3322.8,3321.5,6.01067]
[1737673314510,3.01015,3322.1,3321.4,3.602169]
[1737673315022,3.00999,3322.3,3321.5,3.0106]
[1737673315217,0.55,3322.7,3321.4,3.602169]
[1737673315422,0.55,3322.7,3321.3,3.01086]
[1737673315423,0.55,3322.5,3321.3,3.0]
[1737673315729,3.01034,3321.9,3321.3,3.0]
[1737673315936,3.0106,3321.6,3320.8,4.05793]
[1737673316240,3.01079,3321.4,3320.7,3.01134]
[1737673316738,4.0508,3321.6,3320.7,3.01134]
[1737673316937,3.01098,3321.2,3320.4,3.01166]
[1737673317137,3.01085,3321.4,3320.6,3.01147]
[1737673317496,3.01097,3321.2,3320.5,3.0]
[1737673317926,3.01089,3321.3,3320.5,3.01157]
[1737673318134,3.01106,3321.1,3320.3,6.01176]
[1737673318442,3.01134,3320.8,3320.0,3.01198]
[1737673318647,3.01134,3320.8,3320.1,3.01195]
[1737673318943,3.0113,3320.9,3320.1,3.01195]
[1737673319151,0.978,3320.7,3319.9,3.01213]
[1737673319454,3.98948,3320.7,3319.9,3.01213]
[1737673319631,3.98948,3320.7,3320.0,3.0]
[1737673319803,3.01151,3320.6,3319.9,3.01213]
[1737673320004,3.01151,3320.6,3319.7,3.01229]
[1737673320209,3.0116,3320.5,3319.6,3.01233]
[1737673320432,3.01197,3320.1,3319.3,3.0126]
[1737673320630,3.01205,3320.0,3319.2,3.01274]
[1737673320908,3.01205,3320.0,3319.3,3.01266]
[1737673321104,3.01205,3320.0,3319.4,3.0]
[1737673321317,3.01205,3320.0,3319.3,3.01266]